[Event "Romanian Team Blitz Open 2022"]
[Site "Sebes"]
[Date "2022.12.04"]
[Round "2.7"]
[White "Stoleriu, George"]
[Black "Berescu, Alin-Mile"]
[Result "1-0"]
[ECO "B10"]
[WhiteElo "2389"]
[BlackElo "2429"]
[Annotator "TA"]
[PlyCount "69"]
[EventDate "2022.12.04"]
[EventType "blitz"]
[EventCountry "ROU"]
[SourceTitle "playchess.com"]
[Source "ChessBase"]
[SourceQuality "1"]
[TimeControl "180+2"]

{[%evp 9,69,24,28,16,26,25,39,39,50,42,44,41,34,-57,74,64,88,75,114,108,131,126,119,133,139,134,145,129,159,124,158,82,93,-14,53,50,40,78,120,113,107,70,463,452,444,350,327,341,395,394,389,383,392,393,398,399,414,401,743,740,1010,998]} 1. e4 {[%emt 0:00:01]} c6 {[%emt 0:00:02]} 2. Nf3 {[%emt 0:00:01]} d5 {[%emt 0:00:01]} 3. d3 {[%emt 0:00:01]} Bg4 {[%emt 0:00:09]} 4. h3 {[%emt 0:00:01]} Bxf3 {[%emt 0:00:02]} 5. Qxf3 {[%emt 0:00:01]} e6 {[%emt 0:00:01]} 6. g3 {[%emt 0:00:03] B10: Caro-Kann: 2 d3 and 2 c4.} Nd7 {[%emt 0:00:02]} 7. Bg2 {[%emt 0:00:01][%cal Re4d5]} g6 {[%emt 0:00:09]} 8. O-O {[%emt 0:00:02][%cal Re4d5] White is slightly better.} Bg7 {[%emt 0:00:01]} 9. Qe2 {[%emt 0:00:01]} Ne7 {[%emt 0:00:02]} 10. Nd2 {[%emt 0:00:04]} O-O {[%emt 0:00:03]} 11. f4 {[%emt 0:00:07] [#]} (11. h4 $14) 11... f5 {[%emt 0:00:18] [#]} (11... Bxb2 $1 $15 {stays ahead.} 12. Bxb2 Qb6+ 13. Qf2 Qxb2) 12. e5 $146 {[%emt 0:00:03]} ({Predecessor:} 12. Nf3 Nf6 13. Ng5 Qd7 14. exf5 Nxf5 15. Qxe6+ Qxe6 16. Nxe6 Rfe8 17. Nxg7 Kxg7 18. Kf2 {1-0 (66) Ibarra Jerez,J (2570)-Ezat,M (2391) Chess.com INT 2022}) 12... b5 {[%emt 0:00:06]} 13. d4 {[%emt 0:00:14]} Nc8 {[%emt 0:00:13]} 14. a4 {[%emt 0:00:03]} Rb8 {[%emt 0:00:16]} 15. b3 {[%emt 0:00:04]} b4 {[%emt 0:00:24][%cal Oc8d6]} 16. Nf3 {[%emt 0:00:10]} h6 {[%emt 0:00:11]} 17. Be3 {[%emt 0:00:02]} Rf7 {[%emt 0:00:02]} 18. Rfc1 {[%emt 0:00:01]} Bf8 {[%emt 0:00:02]} 19. Qf2 {[%emt 0:00:35]} Qa5 {[%emt 0:00:06]} 20. Ne1 {[%emt 0:00:17]} (20. Bf1 $142) 20... c5 {[%emt 0:00:02]} 21. dxc5 {[%emt 0:00:10]} (21. Nd3 $16) 21... Bxc5 {[%emt 0:00:02]} (21... Nxc5 $11 22. Kh2 Ne4) 22. Nf3 $14 {[%emt 0:00:11][%cal Be1f3,Bf3d4,Bd4e6][%mdl 32]} Bxe3 {[%emt 0:00:04]} 23. Qxe3 {[%emt 0:00:01]} Qc5 {[%emt 0:00:19]} 24. Nd4 {[%emt 0:00:01] [#] aiming for c4.} Ne7 {[%emt 0:00:15]} 25. Kf2 {[%emt 0:00:04] Hoping for c4. White is more active.} Rb6 $2 {[%emt 0:00:07][%mdl 8192] This costs Black the game.} (25... Rc8 $14) 26. a5 $18 {[%emt 0:00:01]} Ra6 {[%emt 0:00:10]} 27. Bf1 {[%emt 0:00:01] Against g5} Rxa5 {[%emt 0:00:01]} 28. Nxe6 {[%emt 0:00:19]} Qxe3+ {[%emt 0:00:02]} 29. Kxe3 {[%emt 0:00:00]} Rxa1 {[%emt 0:00:09]} 30. Rxa1 {[%emt 0:00:01]} Nc8 {[%emt 0:00:12]} 31. Ra4 {[%emt 0:00:17]} Re7 {[%emt 0:00:07]} 32. Nd4 {[%emt 0:00:01]} Nc5 {[%emt 0:00:14]} 33. Rxb4 {[%emt 0:00:03]} Ne4 {[%emt 0:00:08]} (33... Rc7 $142 34. Rb8 Nd7) 34. Rb8 {[%emt 0:00:02]} Re8 {[%emt 0:00:00]} 35. Bb5 {[%emt 0:00:13] Weighted Error Value: White=0.21 (precise) /Black=0.44} 1-0

[Event "Romanian Team Blitz Open 2022"]
[Site "Sebes"]
[Date "2022.12.04"]
[Round "2.8"]
[White "Cnejev, Vladimir-Alexandru"]
[Black "Zubcu, Vlad-George"]
[Result "0-1"]
[ECO "B28"]
[WhiteElo "2293"]
[BlackElo "2135"]
[Annotator "TA"]
[PlyCount "149"]
[EventDate "2022.12.04"]
[EventType "blitz"]
[EventCountry "ROU"]
[SourceTitle "playchess.com"]
[Source "ChessBase"]
[SourceQuality "1"]
[TimeControl "180+2"]

{[%evp 30,149,18,17,31,20,12,16,38,-26,-20,-47,-43,-35,-36,-210,-210,-209,-221,-212,-164,-183,-138,-227,-162,-185,-158,-166,-133,-141,-92,-109,-99,-102,-112,-959,-958,-29988,-29989,-29989,-29990,-29942,-3685,-1329,-227,-224,0,0,0,0,0,0,0,-5883,-5758,-966,-327,-29989,-29990,-29990,-29991,-29998,0,-6087,-5397,-442,0,-1873,-474,-29978,-318,-293,0,-470,-440,-29962,-620,-29967,-29967,-29969,-29970,-29970,-443,-29971,-29973,-29976,-29970,-29969,-29971,-29971,-1211,-29972,-29970,-29970,-29969,-29967,0,-1104,-1072,-29969,-917,-819,-687,-29969,-29970,-29973,-29974,-29979,-29976,-29976,-29977,-29977,-29978,-29977,-918,-29977,-1710,-29981,-29980,-29981,-29982,-29980]} 1. e4 {[%emt 0:00:02]} c5 {[%emt 0:00:00]} 2. Nf3 {[%emt 0:00:01]} e6 {[%emt 0:00:01]} 3. c3 {[%emt 0:00:01]} d5 {[%emt 0:00:05]} 4. e5 {[%emt 0:00:05]} a6 {[%emt 0:00:30]} 5. d4 {[%emt 0:00:05]} Nc6 {[%emt 0:00:01]} 6. a3 {[%emt 0:00:14]} Nge7 {[%emt 0:00:13]} 7. Be3 {[%emt 0:00:17]} Nf5 {[%emt 0:00:03]} 8. Bd3 {[%emt 0:00:02]} Be7 {[%emt 0:00:19]} 9. O-O {[%emt 0:00:04]} O-O {[%emt 0:00:04]} 10. b4 {[%emt 0:00:35]} cxd4 {[%emt 0:00:11]} 11. cxd4 {[%emt 0:00:01]} f6 {[%emt 0:00:06]} 12. Bxf5 {[%emt 0:00:05]} exf5 {[%emt 0:00:04]} 13. Nc3 {[%emt 0:00:39]} Be6 {[%emt 0:00:03]} 14. exf6 {[%emt 0:00:10]} Bxf6 {[%emt 0:00:02]} 15. Qd2 {[%emt 0:00:03]} h6 {[%emt 0:00:14]} 16. Bf4 {[%emt 0:00:41]} Rc8 {[%emt 0:00:32]} 17. Rfe1 {[%emt 0:00:02]} Bf7 {[%emt 0:00:12]} 18. Be5 {[%emt 0:00:08]} Be7 {[%emt 0:00:33]} 19. Re2 {[%emt 0:00:07]} ({White should try} 19. Na4 $14) 19... Bh5 $11 {[%emt 0:00:01]} 20. Qd3 {[%emt 0:00:05]} Nxe5 {[%emt 0:00:05]} 21. Rxe5 {[%emt 0:00:05]} Bf6 $1 {[%emt 0:00:09]} 22. Rxf5 $2 {[%emt 0:00:08]} (22. Re3 $15) 22... Bg6 $19 {[%emt 0:00:03]} 23. g4 {[%emt 0:00:03]} Bxf5 {[%emt 0:00:01]} 24. gxf5 {[%emt 0:00:01]} Qd6 {[%emt 0:00:02]} 25. Ne2 {[%emt 0:00:01]} Rfe8 {[%emt 0:00:02]} 26. Ng3 {[%emt 0:00:01]} (26. Kg2 $17) 26... Qf4 {[%emt 0:00:03]} 27. Kg2 {[%emt 0:00:01]} Rc4 {[%emt 0:00:01]} 28. Rd1 {[%emt 0:00:01]} Rec8 {[%emt 0:00:09]} 29. Qe2 {[%emt 0:00:02]} Kh7 {[%emt 0:00:02]} (29... Bxd4 $2 30. Qe6+ Kh7 31. Rxd4 (31. Qxd5 Bf6 $17) 31... Rxd4 32. Nxd4 $18 (32. Qxc8 Rd3 $18)) ({Black should play} 29... Kf8 {Threatens to win with ...Rc2.} 30. Qe6 Rd8) 30. Qe6 $17 {[%emt 0:00:02]} Rc3 {[%emt 0:00:03]} (30... Bxd4 $2 31. Rxd4 (31. Qxd5 Bf6 $17) 31... Rxd4 32. Nxd4 $18 (32. Qxc8 Rd3 $18)) 31. Qxd5 {[%emt 0:00:02]} Rxa3 {[%emt 0:00:03]} 32. h3 $2 {[%emt 0:00:01][%mdl 8192]} (32. Re1 $17) 32... Rcc3 $19 {[%emt 0:00:02]} 33. Ng1 {[%emt 0:00:05]} Rxg3+ 34. fxg3 {[%emt 0:00:02]} Rxg3+ {[%emt 0:00:05]} 35. Kh1 {[%emt 0:00:02]} Qh4 {[%emt 0:00:04]} (35... Qe3 $142 36. Qg2 Rxg2 37. Kxg2 Qe4+ 38. Nf3 Qe2+ 39. Kg3 Qxd1 40. d5 Qxd5 41. h4 Qxf5 42. h5 Qxh5 43. Kf4 g5+ 44. Ke4 g4 45. Nd2 Qe5+ 46. Kd3 Qd5+ 47. Kc2 g3 48. Kd1 g2 49. Kc2 g1=Q 50. b5 Qxb5 51. Nf3 Qc4+ 52. Kd2 Qgc1#) 36. Rd2 {[%emt 0:00:03]} Ra3 $2 {[%emt 0:00:02]} (36... Rxh3+ 37. Nxh3 Qxh3+ 38. Kg1 Qe3+ 39. Kf1 Qxd2 40. Qxb7 Qd3+ 41. Kg2 Qxd4 42. Qxa6 Qe4+ 43. Kh3 Qxf5+ 44. Kh2 Qf4+ 45. Kh3 Qh4+ 46. Kg2 Qe4+ 47. Kf1 Bd4 48. Qa3 Be3 49. Qa2 Qh1+ 50. Ke2 Qh2+ 51. Kf3 Qxa2 52. Kxe3 Qb3+ 53. Kf4 g5+ 54. Ke5 g4 55. Kf4 g3 56. b5 g2 57. Ke5 g1=Q 58. b6 Qge3+ 59. Kd6 Qbxb6+ 60. Kd7 Qee6#) 37. Qg2 $19 {[%emt 0:00:03]} Ra1 $2 {[%emt 0:00:02]} (37... Bxd4 38. Qg6+ Kh8 39. Qe8+ Kh7 40. Qg6+ Kh8 41. Qe8+ Kh7 42. Qg6+ $11) (37... Bg5 $19 {Hoping for ...Rg3.} 38. Re2 Qxd4 39. Qxb7 Rg3) 38. Qg6+ $11 {[%emt 0:00:01]} (38. Qxb7 {leads to mate.} Bxd4 39. Qg2 Rxg1+ 40. Qxg1 Bxg1 41. Ra2 Bb6 42. Kg2 Qg5+ 43. Kf1 Qxf5+ 44. Ke1 Qb1+ 45. Kd2 Qxa2+ 46. Kd3 Qb3+ 47. Kd2 Bd4 48. Ke2 Qe3+ 49. Kd1 Qf2 50. Kc1 Qb2+ 51. Kd1 Bc3 52. h4 Qd2#) 38... Kh8 {[%emt 0:00:02]} 39. Qe8+ {[%emt 0:00:01]} Kh7 {[%emt 0:00:01]} 40. Qg6+ {[%emt 0:00:01]} Kh8 {[%emt 0:00:01]} 41. Kh2 $2 {[%emt 0:00:05][%mdl 8192]} (41. Qe8+ $11 Kh7 42. Qg6+) 41... Qf4+ $19 {[%emt 0:00:01]} (41... Bxd4 42. Qe8+ Kh7 43. Qg6+ Kh8 44. Qe8+ Kh7 45. Qg6+ Kh8 $11) 42. Kh1 {[%emt 0:00:03]} Qe4+ $2 {[%emt 0:00:05]} ({Worse is} 42... Qxd2 43. Qe8+ Kh7 44. Qg6+ Kh8 45. Qe8+ Kh7 46. Qg6+ Kh8 $11) (42... Qe3 {[%cal Of6d4]} 43. Qg2 Rxg1+ $1 {[%mdl 512]} 44. Qxg1 Qxd2) 43. Rg2 $2 {[%emt 0:00:01]} (43. Qg2 $19 Qf4 44. Rf2 Qxd4 45. Re2) 43... Bxd4 {[%emt 0:00:02]} ({Stronger than} 43... Qxd4 44. Qe8+ Kh7 45. Qg6+ Kh8 46. Qe8+ Kh7 47. Qg6+ Kh8 $11) 44. Kh2 {[%emt 0:00:03]} Be5+ {[%emt 0:00:01]} 45. Kh1 {[%emt 0:00:01] [#]} Bd4 {[%emt 0:00:01]} (45... Rxg1+ $142 $1 {[%mdl 512]} 46. Kxg1 Qe1#) 46. Kh2 $19 {[%emt 0:00:03]} Qe5+ {[%emt 0:00:01]} 47. Kh1 {[%emt 0:00:03]} Qe4 {[%emt 0:00:05]} (47... Qe3 $142 48. Qg4 Rc1) 48. Kh2 $19 {[%emt 0:00:01]} b5 {[%emt 0:00:03]} (48... Re1 $142 {( -> ...Be5+)} 49. Rg3 b5) 49. Ne2 {[%emt 0:00:03]} (49. Nf3 $19 Ra3 50. Rg4 Ra2+ 51. Rg2 Rxg2+ 52. Kxg2 Qe2+ 53. Kg3 Bf2+ 54. Kh2 Be1+ 55. Qg2 Qxg2+ 56. Kxg2 Bxb4 57. Kf1) 49... Qe5+ $2 {[%emt 0:00:01]} (49... Be5+ {mates} 50. Qg3 Bxg3+ 51. Nxg3 Qxb4 52. Re2 Ra3 53. f6 gxf6 54. Nf1 Qf4+ 55. Kg1 Rxh3 56. Re8+ Kg7 57. Re2 Rh1+ $3 {[%mdl 512]} 58. Kxh1 Qxf1+ 59. Kh2 Qxe2+ 60. Kg3 f5 61. Kf4 Kf6 62. Kg3 Kg5 63. Kh3 Kf4 64. Kh4 Qh2#) 50. Ng3 $19 {[%emt 0:00:01]} Be3 $2 {[%emt 0:00:02]} (50... Ra3 $19 {White must now prevent ...Qb8.} 51. Re2 Re3 52. Rxe3 Bxe3) 51. h4 $2 {[%emt 0:00:02][%mdl 8192] [#]} (51. f6 $11 {and White has nothing to worry.} gxf6 52. Qf7) 51... Bf4 $1 $19 {[%emt 0:00:01]} 52. Kh3 {[%emt 0:00:03]} (52. f6 $19 gxf6 53. Qd3) 52... Ra3 {[%emt 0:00:01]} (52... Bxg3 $142 53. Rxg3 Rh1+ 54. Kg2 Qe4+ 55. Rf3 Rxh4 56. Kg3 Qe1+ 57. Rf2 Rc4 58. Qh5 Qg1+ 59. Rg2 Rc3+ 60. Qf3 Qe1+ 61. Rf2 Rxf3+ 62. Kxf3 Qc3+ 63. Kg2 Qxb4 64. f6 Qe4+ 65. Kg1 Qg4+ 66. Kf1 Qc4+ 67. Re2 gxf6 68. Kf2 b4 69. Kf3 b3 70. Re8+ Kh7 71. Re7+ Kg6 72. Re2 Qd4 73. Rf2 b2 74. Rf1 Qd3+ 75. Kf2 Kg5 76. Rh1 Kg4 77. Rg1+ Kf4 78. Rf1 Qd2+ 79. Kg1+ Kg3 80. Rf3+ Kxf3 81. Kh1 b1=Q#) 53. h5 {[%emt 0:00:02]} Bxg3 {[%emt 0:00:01]} 54. Rxg3 {[%emt 0:00:01]} Rxg3+ {[%emt 0:00:02]} 55. Qxg3 {[%emt 0:00:01]} Qxf5+ {[%emt 0:00:00]} 56. Kg2 {[%emt 0:00:02]} (56. Kh2 $19) 56... Qe4+ {[%emt 0:00:02]} 57. Kh2 {[%emt 0:00:02]} Qe2+ {[%emt 0:00:02]} 58. Kg1 {[%emt 0:00:02]} Qd1+ {[%emt 0:00:02]} 59. Kf2 {[%emt 0:00:01]} Qc2+ {[%emt 0:00:01]} (59... Qd2+ $142 60. Kf1 Qd1+ 61. Kf2 Qxh5 62. Qd3 Qg4 63. Qb3 h5 64. Qa3 Kh7 65. Qxa6 Qxb4 66. Qa7 Qf4+ 67. Ke1 Qe5+ 68. Kd1 h4 69. Qd7 Kh6 70. Kc1 Qc3+ 71. Kb1 h3 72. Qe8 Qd3+ 73. Kb2 Qf3 74. Kb1 Qf5+ 75. Ka2 Qf2+ 76. Kb3 Qf3+ 77. Kb4 h2 78. Qh8+ Kg5 79. Qxg7+ Kh4 80. Qe7+ Kg3 81. Qe1+ Kh3 82. Ka5 h1=Q 83. Qe6+ Kg3 84. Qe5+ Kf2 85. Qd4+ Qe3 86. Qb2+ Kf3 87. Qf6+ Ke2 88. Qb2+ Qd2+ 89. Qxd2+ Kxd2 90. Kxb5 Qd5+ 91. Ka6 Kc3 92. Kb6 Kb4 93. Kc7 Kc5 94. Kb8 Kc6 95. Ka8 Kc7+ 96. Ka7 Qb7#) 60. Kg1 {[%emt 0:00:02]} Qc1+ {[%emt 0:00:04]} 61. Kf2 {[%emt 0:00:02]} Qd2+ {[%emt 0:00:01]} 62. Kf1 {[%emt 0:00:01]} Qd1+ {[%emt 0:00:01]} (62... Qxb4 $142 63. Qg6 Qf8+ 64. Ke2 a5 65. Qb1 Qe8+ 66. Kd2 Qxh5 67. Qe4 Qg5+ 68. Kd1 a4 69. Kc2 h5 70. Qf3 Qg6+ 71. Kc1 Kh7 72. Qa3 h4 73. Kb2 Qg2+ 74. Kc1 Qg5+ 75. Kb1 Qf5+ 76. Kc1 h3 77. Qd6 Qg5+ 78. Kd1 Qg1+ 79. Ke2 Qg2+ 80. Ke1 Qg1+ 81. Ke2 Qg2+ 82. Ke1 h2 83. Qd3+ g6 84. Qd7+ Kh6 85. Qd2+ Qxd2+ 86. Kxd2 h1=Q 87. Ke2 Qe4+ 88. Kf2 a3 89. Kg3 a2 90. Kh2 a1=Q 91. Kg3 Qg1+ 92. Kh3 Qeh1#) 63. Kf2 $19 {[%emt 0:00:03]} Qd4+ {[%emt 0:00:01]} 64. Kf1 {[%emt 0:00:03]} Qf6+ {[%emt 0:00:03]} (64... Qc4+ $142 65. Kg2 Qxb4 66. Qg6 Qb2+ 67. Kh3 Qe5 68. Qf7 Qe3+ 69. Kh2 Qe2+ 70. Kg3 Qe1+ 71. Kg2 Qb1 72. Kf2 b4 73. Ke3 b3 74. Qf4 Qc1+ 75. Kf3 Qxf4+ 76. Kxf4 b2 77. Kg3 b1=Q 78. Kf4 a5 79. Kf3 a4 80. Kg3 a3 81. Kf4 a2 82. Ke3 a1=Q 83. Kf3 Qd3+ 84. Kg2 Qb2+ 85. Kh1 Qf1#) 65. Ke2 $19 {[%emt 0:00:03]} Qe6+ {[%emt 0:00:02]} 66. Kf1 {[%emt 0:00:02]} Qc4+ {[%emt 0:00:02]} 67. Kg1 {[%emt 0:00:03]} Qxb4 {[%emt 0:00:12]} 68. Qe3 {[%emt 0:00:02]} Qg4+ {[%emt 0:00:00]} 69. Kf2 {[%emt 0:00:01]} Qxh5 {[%emt 0:00:00]} 70. Qb6 {[%emt 0:00:01]} Qf7+ {[%emt 0:00:00]} 71. Ke2 {[%emt 0:00:01]} Qf6 {[%emt 0:00:00]} (71... Qc4+ $142 72. Kd2 b4 73. Qg6 b3 74. Qb1 Qd4+ 75. Ke2 b2 76. Qf5 Qb6 77. Qb1 Qb5+ 78. Ke1 Qe5+ 79. Kf2 Qf4+ 80. Ke2 Qc1 81. Qf5 b1=Q 82. Qf8+ Kh7 83. Qf5+ Kg8 84. Qd5+ Kh8 85. Qd8+ Kh7 86. Qd3+ Qxd3+ 87. Kxd3 h5 88. Ke2 h4 89. Kd3 h3 90. Ke4 h2 91. Ke5 h1=Q 92. Kd6 Qhc6+ 93. Ke7 Q1c5+ 94. Kf7 Qg6#) 72. Qb8+ {[%emt 0:00:02]} Kh7 {[%emt 0:00:01]} 73. Qc7 {[%emt 0:00:01]} Qe6+ {[%emt 0:00:02]} 74. Kf2 {[%emt 0:00:02]} Qf5+ {[%emt 0:00:02]} 75. Ke3 {[%emt 0:00:01]} 0-1

[Event "Romanian Team Blitz Open 2022"]
[Site "Sebes"]
[Date "2022.12.04"]
[Round "2.9"]
[White "Anton, Teodor"]
[Black "Soltanici, Ruslan"]
[Result "1-0"]
[ECO "A37"]
[WhiteElo "2438"]
[BlackElo "2357"]
[Annotator "TA"]
[PlyCount "63"]
[EventDate "2022.12.04"]
[EventType "blitz"]
[EventCountry "ROU"]
[SourceTitle "playchess.com"]
[Source "ChessBase"]
[SourceQuality "1"]
[TimeControl "180+2"]

{[%evp 11,63,10,8,8,10,-4,0,-12,6,-48,-49,-46,9,16,10,10,22,-20,0,-109,6,0,0,0,12,0,8,10,27,12,6,0,8,0,-2,-9,0,0,0,0,0,0,0,0,0,-3,-4,-11,38,76,29986,29987,29975,2506]} 1. Nf3 {[%emt 0:00:02]} c5 {[%emt 0:00:01]} 2. g3 {[%emt 0:00:01]} Nc6 {[%emt 0:00:02]} 3. Bg2 {[%emt 0:00:01]} g6 {[%emt 0:00:01]} 4. O-O {[%emt 0:00:02]} Bg7 {[%emt 0:00:01]} 5. c4 {[%emt 0:00:06]} d6 {[%emt 0:00:02]} 6. Nc3 {[%emt 0:00:02]} Bf5 {[%emt 0:00:01] 6...e6 is setting a new trend.} 7. d3 {[%emt 0:00:02] A37: Symmetrical English vs ...g6: 4 Bg2 Bg7 5 Nf3.} Qd7 {[%emt 0:00:02]} 8. Bd2 {[%emt 0:00:06]} Bh3 {[%emt 0:00:03]} 9. Rb1 {[%emt 0:00:03] The position is equal.} h5 {[%emt 0:00:06] [#]} 10. e3 $146 {[%emt 0:00:26]} (10. Bxh3 $11 Qxh3 11. Qa4) ({Predecessor:} 10. Bxh3 Qxh3 11. Ng5 Qd7 12. h4 Nh6 13. Nd5 O-O 14. e3 e6 15. Nf4 Rab8 16. Bc3 {0-1 (36) Vastrukhin,O (2420)-Alekseenko,K (2621) Yaroslavl 2018}) 10... Bxg2 $1 $15 {[%emt 0:00:35]} 11. Kxg2 {[%emt 0:00:02]} Nh6 {[%emt 0:00:05]} (11... h4 $15) 12. e4 $11 {[%emt 0:00:14]} Ng4 {[%emt 0:00:05][%cal Oh5h4]} 13. a3 {[%emt 0:00:10] Prevents h4.} (13. Nh4 {looks sharper.} Bd4 14. Nb5 Bf6 15. h3) 13... Nge5 {[%emt 0:00:17]} 14. Nxe5 {[%emt 0:00:04]} (14. Nh4 $5 {[%cal Rf2f4]}) 14... Nxe5 {[%emt 0:00:01]} 15. Bg5 {[%emt 0:00:17] [#] Against h4} (15. f4 $11 {keeps the balance.} Nc6 16. h4) 15... e6 {[%emt 0:00:41]} ({Better is} 15... h4 $1 $17 {[%cal Rh4g3] And now ...hxg3 would win.} 16. gxh4 f6) 16. h3 {[%emt 0:00:05]} Nc6 {[%emt 0:00:09]} 17. Qd2 {[%emt 0:00:06]} Nd4 {[%emt 0:00:34]} 18. b4 {[%emt 0:00:06]} O-O {[%emt 0:00:16]} 19. Bh6 {[%emt 0:00:02]} Rfe8 {[%emt 0:00:03]} 20. Bxg7 {[%emt 0:00:02]} (20. g4 {is more complex.} Kh7 21. Be3 f5 22. exf5 gxf5 23. f3) 20... Kxg7 {[%emt 0:00:01]} 21. Ne2 {[%emt 0:00:08]} Nxe2 22. Qxe2 {[%emt 0:00:01]} b6 {[%emt 0:00:23]} 23. f4 {[%emt 0:00:02]} d5 {[%emt 0:00:03]} 24. cxd5 {[%emt 0:00:08]} exd5 {[%emt 0:00:01]} 25. e5 {[%emt 0:00:01]} Rac8 {[%emt 0:00:11]} 26. f5 {[%emt 0:00:10]} d4 {[%emt 0:00:03]} 27. Rbe1 {[%emt 0:00:16]} Qd5+ {[%emt 0:00:02]} (27... gxf5 28. Qxh5 Qd5+ 29. Kg1 Rxe5 30. Qg5+ Kf8 31. Rxe5 Qxe5 32. Rxf5 (32. Qxf5 Qxf5 33. Rxf5 cxb4 $15) 32... Qe3+ 33. Qxe3 dxe3 34. bxc5 $11) 28. Kg1 {[%emt 0:00:02]} c4 {[%emt 0:00:02]} 29. f6+ {[%emt 0:00:31]} Kh7 {[%emt 0:00:01]} (29... Kg8 $11 30. Qe4 Qxe4 31. Rxe4 c3) 30. Rf5 $1 $14 {[%emt 0:00:04][%cal Of5h5] White threatens Rxh5+! and mate.} cxd3 $2 {[%emt 0:00:05][%mdl 8192] [#]} (30... gxf5 $2 {is a self mate.} 31. Qxh5+ Kg8 32. Qg5+ Kh8 33. Qg7#) (30... Rc6 $16) 31. Rxh5+ $1 {[%emt 0:00:02][%mdl 576]} Kg8 {[%emt 0:00:01]} 32. Qd2 {[%emt 0:00:05] Weighted Error Value: White=0.13 (very precise) /Black=0.30} 1-0

[Event "Romanian Team Blitz Open 2022"]
[Site "Sebes"]
[Date "2022.12.04"]
[Round "2.10"]
[White "Cosma, Ioan"]
[Black "David, Alexandru-Vasile"]
[Result "1/2-1/2"]
[ECO "B52"]
[WhiteElo "2368"]
[BlackElo "2404"]
[Annotator "TA"]
[PlyCount "65"]
[EventDate "2022.12.04"]
[EventType "blitz"]
[EventCountry "ROU"]
[SourceTitle "playchess.com"]
[Source "ChessBase"]
[SourceQuality "1"]
[TimeControl "180+2"]

{[%evp 11,65,14,27,14,27,27,28,28,31,31,30,25,27,-12,0,-13,33,20,60,52,53,47,54,46,48,40,57,27,85,92,98,72,97,102,93,81,114,0,0,0,0,0,0,0,0,0,0,0,0,0,0,0,0,0,0,0]} 1. e4 {[%emt 0:00:00]} c5 {[%emt 0:00:09]} 2. Nf3 {[%emt 0:00:01]} d6 {[%emt 0:00:03]} 3. Bb5+ {[%emt 0:00:02]} Bd7 {[%emt 0:00:01]} 4. Bxd7+ Qxd7 {[%emt 0:00:01]} 5. c4 {[%emt 0:00:04]} e5 {[%emt 0:00:02]} 6. Nc3 {[%emt 0:00:02]} Nc6 {[%emt 0:00:01]} 7. O-O {[%emt 0:00:02] B52: Sicilian: Moscow Variation with 3...Bd7.} Be7 {[%emt 0:00:02]} 8. d3 {[%emt 0:00:01] 8.a3 is the fancy move.} Bd8 {[%emt 0:00:01]} 9. a3 {[%emt 0:00:02] White has an edge.} Nge7 {[%emt 0:00:01]} 10. Rb1 {[%emt 0:00:01]} O-O {[%emt 0:00:03]} 11. b4 {[%emt 0:00:01]} f5 {[%emt 0:00:12] [#]} 12. b5 $146 {[%emt 0:00:01]} ({Predecessor:} 12. exf5 Nxf5 13. Be3 b6 14. Nd2 h6 15. Nde4 Be7 16. Qg4 Kh7 17. Nd5 Rf7 18. b5 {1-0 (27) So,W (2772)-Caruana,F (2791) Chess.com INT 2021}) 12... Nd4 {[%emt 0:00:02]} 13. exf5 {[%emt 0:00:09]} Ba5 {[%emt 0:00:10]} (13... Ndxf5 $11 {was preferrable.} 14. Bg5 h6 15. Bxe7 Nxe7) 14. Nxd4 $14 {[%emt 0:00:09]} cxd4 {[%emt 0:00:09]} 15. Ne4 {[%emt 0:00:07]} Nxf5 {[%emt 0:00:23]} 16. Qg4 {[%emt 0:00:03]} d5 {[%emt 0:00:07]} 17. cxd5 {[%emt 0:00:08]} Qxd5 {[%emt 0:00:01]} 18. Bg5 {[%emt 0:00:08][%cal Oe4f6]} (18. a4 {with more complications.} Nd6 19. Bh6 Nf5 20. Bg5) 18... Kh8 {[%emt 0:01:04]} 19. Rbc1 {[%emt 0:00:20]} (19. a4 {is interesting.} h6 20. Bf6 Qe6 21. Bh4) 19... Bb6 {[%emt 0:00:02]} (19... Qxb5 $11 {keeps the balance.} 20. Rc5 Qb6) 20. a4 $16 {[%emt 0:00:08]} (20. Qh3 {looks sharper.} Rae8 21. a4 Ba5 22. Rc4) 20... Rf7 {[%emt 0:00:15]} 21. Rc4 {[%emt 0:00:04]} Nd6 {[%emt 0:00:01]} 22. Nxd6 {[%emt 0:00:09]} Qxd6 {[%emt 0:00:01]} 23. Rfc1 {[%emt 0:00:05] And now Rc8+ would win.} h6 {[%emt 0:00:01]} 24. Rc8+ {[%emt 0:00:09]} (24. Bd2 $16) 24... Rf8 $1 $11 {[%emt 0:00:01] The position is equal.} 25. Bd2 {[%emt 0:00:14]} Qa3 $1 {[%emt 0:00:09][%csl LRa4,LRd3]} 26. Rxa8 {[%emt 0:00:24]} Rxa8 {[%emt 0:00:02]} 27. Rc8+ {[%emt 0:00:08]} Rxc8 {[%emt 0:00:01]} 28. Qxc8+ {[%emt 0:00:01] KQB-KQB} Kh7 {[%emt 0:00:02]} 29. Qf5+ {[%emt 0:00:09]} (29. Qxb7 $2 {leads to mate.} Qa1+) 29... Kh8 {[%emt 0:00:01] [#] ( -> ...Qa1+)} 30. g4 {[%emt 0:00:23]} Qxa4 {[%emt 0:00:07]} 31. Qf8+ {[%emt 0:00:19]} Kh7 {[%emt 0:00:01] ...Qd1+ is the strong threat.} 32. Qf5+ {[%emt 0:00:01]} Kh8 {[%emt 0:00:01]} 33. Qf8+ {Weighted Error Value: White=0.12 (very precise) /Black=0.12 (very precise)} 1/2-1/2